fUSD/lending_fUSD_20260703
["ID","MTS","AMOUNT","RATE_DAILY","PERIOD"]
[426952450,1783051845000,-671.53647702,0.00027829,2]
[426952452,1783051845000,-337.0,0.00027831,2]
[426952458,1783051845000,-152.0,0.00027841,3]
[426952447,1783051845000,-429.15,0.00027752,2]
[426952448,1783051845000,-154.82,0.00027759,7]
[426952449,1783051845000,-154.82,0.00027807,7]
[426952446,1783051845000,-6558.49,0.00027752,2]
[426952451,1783051845000,-1363.0,0.00027831,2]
[426952487,1783051846000,-904.64662748,0.00022075,2]
[426952488,1783051846000,-3108.10984124,0.00022075,2]
[426952486,1783051846000,-808.00460389,0.00022075,2]
[426952521,1783053032000,-156.03,0.00020891,2]
[426952527,1783053032000,-576.32,0.00020951,2]
[426952523,1783053032000,-2370.89,0.00020951,2]
[426952522,1783053032000,-9999.99,0.00020951,2]
[426952525,1783053032000,-1081.04,0.00020951,2]
[426952528,1783053032000,-904.65,0.00020951,2]
[426952530,1783053032000,-299.99,0.00020951,7]
[426952548,1783053032000,-13632.0,0.00021273,2]
[426952542,1783053032000,-819.45,0.00021067,2]
[426952546,1783053032000,-270.30635103,0.00021165,2]
[426952532,1783053032000,-4999.99,0.00020951,2]
[426952544,1783053032000,-1057.13,0.00021151,2]
[426952536,1783053032000,-150.99,0.00020951,2]
[426952534,1783053032000,-9999.99,0.00020951,2]
[426952518,1783053032000,-133858.09,0.00020799,2]
[426952540,1783053032000,-2056.84235671,0.00021046,2]
[426952520,1783053032000,-200.0,0.00020891,2]
[426952501,1783053032000,-281.90673872,0.000159,2]
[426952514,1783053032000,-173.14,0.00020621,2]
[426952503,1783053032000,-150.0,0.00016159,2]
[426952505,1783053032000,-421.71562138,0.000164,2]
[426952508,1783053032000,-378.87338433,0.0001749,2]
[426952506,1783053032000,-570.5865,0.000169,2]
[426952502,1783053032000,-615.51539202,0.0001603,2]
[426952504,1783053032000,-200.0,0.00016319,2]
[426952510,1783053032000,-500.0,0.00018355,2]
[426952509,1783053032000,-339.67892845,0.00018255,2]
[426952507,1783053032000,-150.0,0.00017172,2]
[426952512,1783053032000,-339.67892845,0.00019487,2]
[426952511,1783053032000,-150.01,0.00019355,7]
[426952513,1783053032000,-1965.36,0.00020183,2]
[426952516,1783053032000,-158.95309332,0.00020769,2]
[426952515,1783053032000,-339.67892845,0.00020718,2]
[426952538,1783053032000,-818.63547139,0.0002103,2]
[426952519,1783053032000,-500.0,0.00020818,2]
[426952550,1783053032000,-2443.66,0.00021279,2]
[426952517,1783053032000,-444.0,0.00020798,2]
[426952553,1783053032000,-500.0,0.00021755,2]
[426952581,1783053032000,-500.0,0.00021755,2]
[426952599,1783053032000,-500.0,0.00021755,2]
[426952595,1783053032000,-500.0,0.00021755,2]
[426952583,1783053032000,-500.0,0.00021755,2]
[426952606,1783053032000,-500.0,0.00021755,2]
[426952604,1783053032000,-500.0,0.00021755,2]
[426952610,1783053032000,-391.49264745,0.00021755,2]
[426952609,1783053032000,-500.0,0.00021755,2]
[426952611,1783053032000,-500.0,0.00021755,2]
[426952608,1783053032000,-500.0,0.00021755,2]
[426952612,1783053032000,-500.0,0.00021755,2]
[426952614,1783053032000,-500.0,0.00021755,2]
[426952613,1783053032000,-500.0,0.00021755,2]
[426952615,1783053032000,-500.0,0.00021755,2]
[426952551,1783053032000,-819.45,0.00021594,2]
[426952603,1783053032000,-500.0,0.00021755,2]
[426952601,1783053032000,-500.0,0.00021755,2]
[426952597,1783053032000,-500.0,0.00021755,2]
[426952589,1783053032000,-500.0,0.00021755,2]
[426952571,1783053032000,-500.0,0.00021755,2]
[426952559,1783053032000,-500.0,0.00021755,2]
[426952585,1783053032000,-500.0,0.00021755,2]
[426952575,1783053032000,-500.0,0.00021755,2]
[426952565,1783053032000,-500.0,0.00021755,2]
[426952563,1783053032000,-500.0,0.00021755,2]
[426952577,1783053032000,-500.0,0.00021755,2]
[426952555,1783053032000,-500.0,0.00021755,2]
[426952561,1783053032000,-500.0,0.00021755,2]
[426952569,1783053032000,-500.0,0.00021755,2]
[426952573,1783053032000,-569.48911512,0.00021755,2]
[426952557,1783053032000,-500.0,0.00021755,2]
[426952579,1783053032000,-500.0,0.00021755,2]
[426952587,1783053032000,-500.0,0.00021755,2]
[426952591,1783053032000,-500.0,0.00021755,2]
[426952593,1783053032000,-500.0,0.00021755,2]
[426952567,1783053032000,-500.0,0.00021755,2]
[426952625,1783053033000,-1002.9456266,0.00021919,2]
[426952627,1783053033000,-2736.65057894,0.0002196,2]
[426952623,1783053033000,-5000.0,0.00021918,2]
[426952622,1783053033000,-395.17826571,0.00021756,2]
[426952624,1783053033000,-150.0,0.00021918,2]
[426952616,1783053033000,-500.0,0.00021755,2]
[426952621,1783053033000,-500.0,0.00021756,2]
[426952619,1783053033000,-255.4364858,0.00021755,2]
[426952617,1783053033000,-500.0,0.00021755,2]
[426952618,1783053033000,-244.5635142,0.00021755,2]
[426952630,1783053033000,-500.0,0.00021999,2]
[426952620,1783053033000,-500.0,0.00021755,2]
[426952626,1783053033000,-166.67,0.00021936,2]
[426952633,1783053033000,-246.62429442,0.00021999,2]
[426952629,1783053033000,-500.0,0.00021999,2]
[426952628,1783053033000,-163.42,0.00021984,2]
[426952640,1783053033000,-17932.94732578,0.00022,2]
[426952638,1783053033000,-500.0,0.00021999,2]
[426952634,1783053033000,-339.5040577,0.00021999,2]
[426952636,1783053033000,-500.0,0.00021999,2]
[426952637,1783053033000,-471.70272209,0.00021999,2]
[426952642,1783053033000,-252.7275,0.00022,2]
[426952639,1783053033000,-500.0,0.00021999,2]
[426952641,1783053033000,-57401.40141973,0.00022,2]
[426952632,1783053033000,-500.0,0.00021999,2]
[426952631,1783053033000,-279.70234294,0.00021999,2]
[426952635,1783053033000,-500.0,0.00021999,2]
[426952659,1783053038000,-500.0,0.00022074,2]
[426952661,1783053038000,-501.46422919,0.00022074,2]
[426952663,1783053038000,-500.0,0.00022074,2]
[426952664,1783053038000,-500.0,0.00022074,2]
[426952668,1783053038000,-500.0,0.00022074,2]
[426952669,1783053038000,-500.0,0.00022074,2]
[426952666,1783053038000,-500.0,0.00022074,2]
[426952672,1783053038000,-382518.03545619,0.00022075,2]
[426952671,1783053038000,-500.0,0.00022074,2]
[426952658,1783053038000,-510.06722813,0.00022074,2]
[426952673,1783053038000,-819.45,0.00022121,2]
[426952667,1783053038000,-507.56614205,0.00022074,2]
[426952662,1783053038000,-500.0,0.00022074,2]
[426952654,1783053038000,-500.0,0.00022074,2]
[426952657,1783053038000,-500.0,0.00022074,2]
[426952655,1783053038000,-500.0,0.00022074,2]
[426952656,1783053038000,-500.0,0.00022074,2]
[426952653,1783053038000,-500.0,0.00022074,2]
[426952651,1783053038000,-500.0,0.00022074,2]
[426952652,1783053038000,-325.62330576,0.00022074,2]
[426952650,1783053038000,-500.0,0.00022074,2]
[426952648,1783053038000,-500.0,0.00022074,2]
[426952649,1783053038000,-500.0,0.00022074,2]
[426952646,1783053038000,-97481.96089965,0.00022,2]
[426952647,1783053038000,-153.03941338,0.00022019,2]
[426952670,1783053038000,-500.0,0.00022074,2]
[426952660,1783053038000,-500.0,0.00022074,2]
[426952674,1783053038000,-819.45,0.00022647,2]
[426952676,1783053038000,-150.0,0.00022923,2]
[426952675,1783053038000,-1965.36,0.00022706,2]
[426952665,1783053038000,-500.0,0.00022074,2]
[426952702,1783053038000,-166.67,0.00025557,2]
[426952701,1783053038000,-265.0,0.0002552,2]
[426952699,1783053038000,-150.0,0.00025373,2]
[426952700,1783053038000,-500.0,0.00025479,2]
[426952698,1783053038000,-1965.36,0.00025229,2]
[426952692,1783053038000,-168.12,0.00024658,2]
[426952695,1783053038000,-179.57,0.00024658,2]
[426952697,1783053038000,-161.79969743,0.00024905,2]
[426952693,1783053038000,-1000.0,0.00024658,2]
[426952694,1783053038000,-179.53,0.00024658,2]
[426952696,1783053038000,-152.74932666,0.00024905,2]
[426952691,1783053038000,-153.03941338,0.0002452,2]
[426952689,1783053038000,-500.0,0.00024438,2]
[426952688,1783053038000,-156.03,0.00024372,2]
[426952690,1783053038000,-1002.94562655,0.00024442,2]
[426952678,1783053038000,-1000.0,0.00023044,2]
[426952687,1783053038000,-526.49666562,0.0002429,2]
[426952681,1783053038000,-153.03941338,0.0002327,2]
[426952682,1783053038000,-500.0,0.00023314,7]
[426952679,1783053038000,-819.45,0.00023174,2]
[426952677,1783053038000,-150.0,0.00023014,2]
[426952686,1783053038000,-150.0,0.00024164,2]
[426952683,1783053038000,-939.266,0.00023314,7]
[426952684,1783053038000,-500.0,0.0002337,2]
[426952685,1783053038000,-166.67,0.00023746,2]
[426952680,1783053038000,-1002.94562655,0.00023181,2]
[426952738,1783053039000,-10953.1978337,0.00026497,2]
[426952759,1783053039000,-500.0,0.00026699,2]
[426952768,1783053039000,-208.19997232,0.00026953,2]
[426952770,1783053039000,-1002.94562655,0.00026966,2]
[426952773,1783053039000,-234.01971971,0.00026994,2]
[426952757,1783053039000,-500.0,0.00026699,2]
[426952755,1783053039000,-500.0,0.00026699,2]
[426952752,1783053039000,-500.0,0.00026699,2]
[426952751,1783053039000,-500.0,0.00026699,2]
[426952771,1783053039000,-217.22134526,0.00026994,2]
[426952766,1783053039000,-881.52136649,0.0002694,2]
[426952761,1783053039000,-4252.18925674,0.000267,2]
[426952808,1783053039000,-500.0,0.00027,7]
[426952775,1783053039000,-225.00844774,0.00026994,2]
[426952791,1783053039000,-215.09506624,0.00026994,2]
[426952789,1783053039000,-261.77695178,0.00026994,2]
[426952787,1783053039000,-238.33655505,0.00026994,2]
[426952776,1783053039000,-195.85052286,0.00026994,2]
[426952795,1783053039000,-164.11600272,0.00026994,2]
[426952793,1783053039000,-226.63526306,0.00026994,2]
[426952780,1783053039000,-485.3990923,0.00026994,2]
[426952779,1783053039000,-458.24797998,0.00026994,2]
[426952783,1783053039000,-152.52002501,0.00026994,2]
[426952785,1783053039000,-207.15053917,0.00026994,2]
[426952796,1783053039000,-182.56769619,0.00026994,2]
[426952798,1783053039000,-209.79752933,0.00026994,2]
[426952764,1783053039000,-879.431,0.00026876,90]
[426952735,1783053039000,-9152.8365521,0.00026497,2]
[426952720,1783053039000,-323.59939487,0.00026158,2]
[426952749,1783053039000,-500.0,0.00026699,2]
[426952797,1783053039000,-173.75258629,0.00026994,2]
[426952704,1783053039000,-160.0,0.00025669,2]
[426952703,1783053039000,-216.74224685,0.00025669,2]
[426952707,1783053039000,-4252.18925674,0.000257,2]
[426952706,1783053039000,-500.0,0.00025698,2]
[426952705,1783053039000,-160.0,0.00025669,2]
[426952710,1783053039000,-1002.94562655,0.00025704,2]
[426952709,1783053039000,-234.94447848,0.000257,2]
[426952708,1783053039000,-177.72727886,0.000257,2]
[426952711,1783053039000,-153.03941338,0.00025771,2]
[426952712,1783053039000,-4252.18925674,0.000259,2]
[426952714,1783053039000,-234.94447848,0.000259,2]
[426952713,1783053039000,-177.72727886,0.000259,2]
[426952725,1783053039000,-195.69673937,0.00026369,2]
[426952716,1783053039000,-150.0,0.00025998,5]
[426952724,1783053039000,-4252.18925674,0.000262,2]
[426952723,1783053039000,-217.96810301,0.00026167,2]
[426952718,1783053039000,-1021.75555076,0.0002603,2]
[426952722,1783053039000,-167.250956,0.00026166,14]
[426952719,1783053039000,-305.49865332,0.00026158,2]
[426952727,1783053039000,-354.11825024,0.00026469,2]
[426952726,1783053039000,-4252.18925674,0.000264,2]
[426952742,1783053039000,-342.7331758,0.00026497,2]
[426952740,1783053039000,-1695.3344021,0.00026497,2]
[426952746,1783053039000,-150.0,0.00026641,2]
[426952744,1783053039000,-167.250957,0.00026547,14]
[426952728,1783053039000,-500.0,0.00026493,2]
[426952731,1783053039000,-373.0748883,0.00026497,2]
[426952800,1783053039000,-244.50178929,0.00026994,2]
[426952733,1783053039000,-8605.6722779,0.00026497,2]
[426952806,1783053039000,-191.86920462,0.00026994,2]
[426952846,1783053039000,-500.0,0.00027087,2]
[426952841,1783053039000,-500.0,0.00027087,2]
[426952840,1783053039000,-580.9512148,0.00027087,2]
[426952834,1783053039000,-500.0,0.00027087,2]
[426952839,1783053039000,-500.0,0.00027087,2]
[426952836,1783053039000,-500.0,0.00027087,2]
[426952838,1783053039000,-500.0,0.00027087,2]
[426952837,1783053039000,-500.0,0.00027087,2]
[426952843,1783053039000,-500.0,0.00027087,2]
[426952842,1783053039000,-500.0,0.00027087,2]
[426952844,1783053039000,-500.0,0.00027087,2]
[426952853,1783053039000,-500.0,0.00027087,2]
[426952858,1783053039000,-500.0,0.00027087,2]
[426952850,1783053039000,-500.0,0.00027087,2]
[426952855,1783053039000,-571.94924444,0.00027087,2]
[426952852,1783053039000,-500.0,0.00027087,2]
[426952848,1783053039000,-500.0,0.00027087,2]
[426952847,1783053039000,-500.0,0.00027087,2]
[426952854,1783053039000,-500.0,0.00027087,2]
[426952849,1783053039000,-500.0,0.00027087,2]
[426952851,1783053039000,-500.0,0.00027087,2]
[426952857,1783053039000,-500.0,0.00027087,2]
[426952856,1783053039000,-500.0,0.00027087,2]
[426952859,1783053039000,-500.0,0.00027087,2]
[426952861,1783053039000,-500.0,0.00027087,2]
[426952862,1783053039000,-500.0,0.00027087,2]
[426952860,1783053039000,-500.0,0.00027087,2]
[426952845,1783053039000,-500.0,0.00027087,2]
[426952835,1783053039000,-500.0,0.00027087,2]
[426952802,1783053039000,-255.40029447,0.00026994,2]
[426952829,1783053039000,-244.68239681,0.00027001,2]
[426952831,1783053039000,-193.0,0.00027038,5]
[426952799,1783053039000,-207.93314767,0.00026994,2]
[426952801,1783053039000,-219.94028463,0.00026994,2]
[426952807,1783053039000,-4252.18925674,0.00027,2]
[426952805,1783053039000,-162.40142839,0.00026994,2]
[426952803,1783053039000,-237.64761442,0.00026994,2]
[426952804,1783053039000,-193.46459426,0.00026994,2]
[426952809,1783053039000,-500.0,0.00027,7]
[426952817,1783053039000,-500.0,0.00027,7]
[426952819,1783053039000,-500.0,0.00027,7]
[426952811,1783053039000,-500.0,0.00027,7]
[426952816,1783053039000,-500.0,0.00027,7]
[426952814,1783053039000,-500.0,0.00027,7]
[426952810,1783053039000,-500.0,0.00027,7]
[426952813,1783053039000,-500.0,0.00027,7]
[426952818,1783053039000,-500.0,0.00027,7]
[426952812,1783053039000,-500.0,0.00027,7]
[426952827,1783053039000,-2500.0,0.00027,6]
[426952824,1783053039000,-500.0,0.00027,7]
[426952832,1783053039000,-151.0,0.00027085,7]
[426952822,1783053039000,-500.0,0.00027,7]
[426952821,1783053039000,-500.0,0.00027,7]
[426952830,1783053039000,-153.03941338,0.00027021,2]
[426952833,1783053039000,-500.0,0.00027087,2]
[426952826,1783053039000,-548.99,0.00027,7]
[426952825,1783053039000,-500.0,0.00027,7]
[426952820,1783053039000,-500.0,0.00027,7]
[426952815,1783053039000,-500.0,0.00027,7]
[426952828,1783053039000,-172.70752572,0.00027001,2]
[426952913,1783053040000,-224.18442476,0.00027551,2]
[426952905,1783053040000,-219.27448257,0.00027551,2]
[426952909,1783053040000,-248.93703023,0.00027551,2]
[426952912,1783053040000,-610.99730665,0.00027551,2]
[426952901,1783053040000,-190.84963966,0.00027551,2]
[426952889,1783053040000,-236.87,0.000274,2]
[426952899,1783053040000,-468.03943941,0.00027551,2]
[426952910,1783053040000,-153.69655744,0.00027551,2]
[426952900,1783053040000,-450.01689548,0.00027551,2]
[426952898,1783053040000,-420.16607944,0.00027551,2]
[426952907,1783053040000,-153.51031089,0.00027551,2]
[426952911,1783053040000,-336.26381736,0.00027551,2]
[426952908,1783053040000,-188.27313755,0.00027551,2]
[426952920,1783053040000,-225.09276063,0.00027551,2]
[426952903,1783053040000,-189.60919054,0.00027551,2]
[426952914,1783053040000,-647.19878973,0.00027551,2]
[426952916,1783053040000,-414.30107835,0.00027551,2]
[426952917,1783053040000,-476.6731101,0.00027551,2]
[426952919,1783053040000,-523.55390356,0.00027551,2]
[426952915,1783053040000,-407.56421539,0.00027551,2]
[426952926,1783053040000,-370.59739698,0.00027551,2]
[426952921,1783053040000,-430.19013248,0.00027551,2]
[426952923,1783053040000,-180.74330456,0.00027551,2]
[426952924,1783053040000,-328.23200545,0.00027551,2]
[426952918,1783053040000,-188.70387969,0.00027551,2]
[426952922,1783053040000,-453.27052611,0.00027551,2]
[426952925,1783053040000,-396.72818462,0.00027551,2]
[426952890,1783053040000,-236.87,0.000274,2]
[426952906,1783053040000,-443.13435936,0.00027551,2]
[426952892,1783053040000,-195.69673936,0.00027499,2]
[426952882,1783053040000,-1500.0,0.00027397,2]
[426952891,1783053040000,-4964.5952,0.00027462,2]
[426952871,1783053040000,-500.0,0.0002715,90]
[426952927,1783053040000,-187.36942356,0.00027551,2]
[426952863,1783053040000,-500.0,0.00027087,2]
[426952870,1783053040000,-500.0,0.0002715,90]
[426952865,1783053040000,-500.0,0.00027087,2]
[426952867,1783053040000,-500.0,0.00027087,2]
[426952868,1783053040000,-500.0,0.00027087,2]
[426952866,1783053040000,-500.0,0.00027087,2]
[426952869,1783053040000,-387338.7965288,0.00027088,2]
[426952872,1783053040000,-500.0,0.0002715,90]
[426952874,1783053040000,-221.0955995,0.000273,30]
[426952884,1783053040000,-5222.19,0.00027397,10]
[426952877,1783053040000,-1000.0,0.00027397,2]
[426952875,1783053040000,-1604.87971452,0.0002732,2]
[426952873,1783053040000,-4252.18925674,0.000272,2]
[426952876,1783053040000,-237.32299978,0.00027391,2]
[426952878,1783053040000,-1000.0,0.00027397,2]
[426952880,1783053040000,-1000.0,0.00027397,2]
[426952881,1783053040000,-196.57537348,0.00027397,2]
[426952879,1783053040000,-1000.0,0.00027397,2]
[426952883,1783053040000,-3049.7,0.00027397,10]
[426952885,1783053040000,-226.67833473,0.00027397,2]
[426952887,1783053040000,-236.87,0.000274,2]
[426952895,1783053040000,-401.17212832,0.00027551,2]
[426952896,1783053040000,-341.96958794,0.00027551,2]
[426952897,1783053040000,-434.44269053,0.00027551,2]
[426952888,1783053040000,-236.87,0.000274,2]
[426952886,1783053040000,-236.87,0.000274,2]
[426952894,1783053040000,-179.57,0.0002755,2]
[426952893,1783053040000,-4252.18925674,0.000275,2]
[426952864,1783053040000,-500.0,0.00027087,2]
[426952929,1783053040000,-365.13539238,0.00027551,2]
[426952939,1783053040000,-200.96888899,0.00027551,2]
[426952960,1783053040000,-157.139899,0.00027583,2]
[426952962,1783053040000,-1000.0,0.00027597,2]
[426952966,1783053040000,-500.0,0.00027598,120]
[426952968,1783053040000,-500.0,0.00027598,120]
[426952971,1783053040000,-500.0,0.00027598,120]
[426952970,1783053040000,-500.0,0.00027598,14]
[426952967,1783053040000,-500.0,0.00027598,120]
[426952969,1783053040000,-500.0,0.00027598,120]
[426952972,1783053040000,-49729.2,0.00027599,2]
[426952975,1783053040000,-5459.744,0.00027636,17]
[426952973,1783053040000,-2574.9,0.00027599,2]
[426952977,1783053040000,-198.05,0.00027712,7]
[426952974,1783053040000,-828.33,0.00027627,30]
[426952976,1783053040000,-169.128,0.00027709,17]
[426952978,1783053040000,-923.94,0.00027712,7]
[426952980,1783053040000,-198.14,0.00027712,7]
[426952982,1783053040000,-266.56,0.00027712,7]
[426952990,1783053040000,-198.14,0.00027873,2]
[426952984,1783053040000,-1965.36,0.00027752,120]
[426952985,1783053040000,-4252.18925674,0.000278,2]
[426952979,1783053040000,-266.59,0.00027712,7]
[426952983,1783053040000,-157.139899,0.00027736,2]
[426952981,1783053040000,-924.43,0.00027712,7]
[426952986,1783053040000,-156.03,0.00027854,2]
[426952987,1783053040000,-198.05,0.00027873,2]
[426952988,1783053040000,-923.94,0.00027873,2]
[426952928,1783053040000,-391.70104573,0.00027551,2]
[426952991,1783053040000,-924.43,0.00027873,2]
[426952992,1783053040000,-266.56,0.00027873,2]
[426952959,1783053040000,-500.0,0.00027582,120]
[426952955,1783053040000,-305.04005002,0.00027558,2]
[426952989,1783053040000,-266.59,0.00027873,2]
[426952964,1783053040000,-500.0,0.00027598,120]
[426952963,1783053040000,-500.0,0.00027597,7]
[426952930,1783053040000,-152.66265455,0.00027551,2]
[426952938,1783053040000,-475.29522884,0.00027551,2]
[426952934,1783053040000,-415.86629533,0.00027551,2]
[426952932,1783053040000,-385.90937686,0.00027551,2]
[426952933,1783053040000,-419.59505865,0.00027551,2]
[426952937,1783053040000,-510.80058893,0.00027551,2]
[426952935,1783053040000,-489.00357859,0.00027551,2]
[426952936,1783053040000,-439.88056927,0.00027551,2]
[426952940,1783053040000,-347.50517259,0.00027551,2]
[426952946,1783053040000,-198.14,0.00027551,30]
[426952943,1783053040000,-383.73840924,0.00027551,2]
[426952942,1783053040000,-204.27486247,0.00027551,2]
[426952941,1783053040000,-386.92918853,0.00027551,2]
[426952931,1783053040000,-387.69841131,0.00027551,2]
[426952945,1783053040000,-266.59,0.00027551,30]
[426952950,1783053040000,-378.98213007,0.00027558,2]
[426952965,1783053040000,-500.0,0.00027598,120]
[426952958,1783053040000,-487.03054447,0.00027582,30]
[426952956,1783053040000,-453.35666947,0.00027558,2]
[426952954,1783053040000,-200.14913514,0.00027558,2]
[426952957,1783053040000,-500.0,0.00027582,7]
[426952961,1783053040000,-500.0,0.00027597,120]
[426952951,1783053040000,-345.41505145,0.00027558,2]
[426952952,1783053040000,-340.11317397,0.00027558,2]
[426952947,1783053040000,-924.43,0.00027551,30]
[426952944,1783053040000,-198.05,0.00027551,30]
[426952949,1783053040000,-923.94,0.00027552,30]
[426952948,1783053040000,-266.56,0.00027551,30]
[426952953,1783053040000,-489.36479362,0.00027558,2]
[426953031,1783053041000,-924.43,0.00028195,7]
[426953032,1783053041000,-266.56,0.00028195,7]
[426953039,1783053041000,-526.49666562,0.00028296,2]
[426953029,1783053041000,-198.14,0.00028195,7]
[426953027,1783053041000,-923.94,0.00028195,7]
[426953028,1783053041000,-266.59,0.00028195,7]
[426953021,1783053041000,-924.43,0.00028034,30]
[426953024,1783053041000,-179.58,0.0002813,7]
[426953023,1783053041000,-4252.18925674,0.000281,2]
[426953034,1783053041000,-1002.94562655,0.00028227,2]
[426953036,1783053041000,-200.0,0.0002828,2]
[426953025,1783053041000,-179.57,0.0002813,7]
[426953042,1783053041000,-1000.0,0.00028315,2]
[426953035,1783053041000,-153.03941338,0.00028272,2]
[426953038,1783053041000,-431.41143876,0.00028283,2]
[426953037,1783053041000,-200.0,0.0002828,2]
[426953040,1783053041000,-975.862666,0.0002831,60]
[426953041,1783053041000,-200.25139545,0.0002831,2]
[426953044,1783053041000,-1000.0,0.00028315,2]
[426953047,1783053041000,-363.34,0.00028364,7]
[426953045,1783053041000,-1000.0,0.00028315,2]
[426953048,1783053041000,-209.07,0.00028364,7]
[426953046,1783053041000,-257.0,0.00028338,5]
[426953043,1783053041000,-1000.0,0.00028315,2]
[426953051,1783053041000,-1000.0,0.00028429,2]
[426953020,1783053041000,-198.14,0.00028034,30]
[426953033,1783053041000,-195.63,0.000282,14]
[426953022,1783053041000,-266.56,0.00028034,30]
[426953008,1783053041000,-159.0,0.00028,2]
[426953019,1783053041000,-266.59,0.00028034,30]
[426953050,1783053041000,-631.51,0.00028364,7]
[426953003,1783053041000,-264.0,0.00028,2]
[426952999,1783053041000,-230.0,0.00028,2]
[426953002,1783053041000,-153.0,0.00028,2]
[426952997,1783053041000,-500.0,0.00027972,2]
[426952993,1783053041000,-157.139899,0.00027889,2]
[426952998,1783053041000,-150.0,0.00027973,2]
[426952994,1783053041000,-500.0,0.00027917,120]
[426952996,1783053041000,-151.26763345,0.00027972,2]
[426953001,1783053041000,-313.0,0.00028,2]
[426952995,1783053041000,-8806.0,0.00027918,2]
[426953000,1783053041000,-200.0,0.00028,2]
[426953017,1783053041000,-198.05,0.00028034,30]
[426953004,1783053041000,-429.0,0.00028,2]
[426953005,1783053041000,-152.0,0.00028,2]
[426953007,1783053041000,-376.0,0.00028,2]
[426953009,1783053041000,-152.0,0.00028,2]
[426953013,1783053041000,-150.55273765,0.00028,2]
[426953010,1783053041000,-388.0,0.00028,2]
[426953014,1783053041000,-200.0,0.00028,2]
[426953012,1783053041000,-158.0,0.00028,2]
[426953011,1783053041000,-165.0,0.00028,2]
[426953026,1783053041000,-198.05,0.00028195,7]
[426953016,1783053041000,-163.96286316,0.00028009,2]
[426953015,1783053041000,-431.41143876,0.00028009,2]
[426953018,1783053041000,-923.94,0.00028034,30]
[426953006,1783053041000,-153.0,0.00028,2]
[426953049,1783053041000,-2567.37,0.00028364,7]
[426953086,1783053041000,-500.0,0.00028999,120]
[426953052,1783053041000,-22414.15,0.00028466,2]
[426953083,1783053041000,-500.0,0.00028999,120]
[426953094,1783053041000,-160.38246919,0.00029,10]
[426953098,1783053041000,-1000.0,0.00029,2]
[426953097,1783053041000,-1018.54,0.00029,2]
[426953088,1783053041000,-500.0,0.00028999,120]
[426953087,1783053041000,-500.0,0.00028999,120]
[426953090,1783053041000,-1000.0,0.00028999,2]
[426953095,1783053041000,-580.08402442,0.00029,2]
[426953091,1783053041000,-500.0,0.00028999,120]
[426953089,1783053041000,-500.0,0.00028999,14]
[426953092,1783053041000,-500.0,0.00028999,7]
[426953096,1783053041000,-150.79,0.00029,7]
[426953082,1783053041000,-500.0,0.00028999,120]
[426953111,1783053041000,-500.0,0.00029,2]
[426953101,1783053041000,-1000.0,0.00029,2]
[426953105,1783053041000,-832.38,0.00029,30]
[426953110,1783053041000,-150.0,0.00029,7]
[426953109,1783053041000,-262.3,0.00029,30]
[426953104,1783053041000,-1000.0,0.00029,2]
[426953100,1783053041000,-202.51,0.00029,7]
[426953107,1783053041000,-787.52,0.00029,115]
[426953099,1783053041000,-165.54,0.00029,2]